[Event "Vugar Gashimov Memorial Blitz 2024"]
[Site "Shusha"]
[Date "2024.09.28"]
[Round "10.4"]
[White "Aravindh, Chithambaram VR."]
[Black "Mamedov, Rauf"]
[Result "1-0"]
[ECO "B50"]
[WhiteElo "2698"]
[BlackElo "2637"]
[Annotator "TA"]
[PlyCount "77"]
[EventDate "2024.09.28"]
[EventType "tourn"]
[EventCountry "AZE"]
[SourceTitle "playchess.com"]
[Source "ChessBase"]
[SourceQuality "1"]
[TimeControl "180+2"]

{[%evp 13,76,0,0,-11,9,-23,-18,-25,8,-18,0,-40,-14,-27,-19,-49,-38,-79,-75,-73,-56,-66,-38,-40,-40,-85,-52,-151,-163,-191,-179,-234,-53,-44,16,0,3,0,80,85,87,88,237,231,211,203,189,114,147,135,135,0,356,345,280,260,518,522,492,297,283,300,347,349,29999]} 1. e4 {[%emt 0:00:02]} c5 {[%emt 0:00:01]} 2. Nf3 {[%emt 0:00:01]} d6 {[%emt 0:00:00]} 3. c3 {[%emt 0:00:03]} Nf6 {[%emt 0:00:01]} 4. h3 {[%emt 0:00:03]} g6 {[%emt 0:00:03]} 5. Bd3 {[%emt 0:00:07]} Bg7 {[%emt 0:00:01]} 6. O-O {[%emt 0:00:02]} O-O {[%emt 0:00:02]} 7. Bc2 {[%emt 0:00:02]} Nc6 {[%emt 0:00:04]} 8. a3 {[%emt 0:00:15]} e5 {[%emt 0:00:03]} 9. b4 {[%emt 0:00:01]} b6 {[%emt 0:00:13]} 10. d3 {[%emt 0:00:05] The position is equal.} h6 {[%emt 0:00:07]} 11. Nbd2 {[%emt 0:00:03][%cal Bb1d2,Bd2f1,Bf1g3][%mdl 32]} Be6 {[%emt 0:00:02]} 12. Bb2 {[%emt 0:00:02]} Rc8 {[%emt 0:00:02]} 13. Re1 {[%emt 0:00:12]} a6 {[%emt 0:00:13]} 14. Nf1 {[%emt 0:00:10]} d5 {[%emt 0:00:10]} 15. exd5 {[%emt 0:00:27]} Nxd5 {[%emt 0:00:01][%cal Oe5e4]} 16. Ng3 {[%emt 0:00:04]} Nf4 {[%emt 0:00:56]} 17. Bc1 {[%emt 0:00:03]} Qc7 {[%emt 0:00:13]} 18. bxc5 {[%emt 0:00:25]} bxc5 {[%emt 0:00:01]} 19. Be3 {[%emt 0:00:04]} Nd5 {[%emt 0:00:18]} 20. Bxc5 {[%emt 0:00:06]} (20. Bd2 $1 $15) 20... Nxc3 $17 {[%emt 0:00:04]} 21. Qd2 {[%emt 0:00:03] [#]} Rfd8 {[%emt 0:00:01][%cal Oe5e4] Threatens to win with ...e4!} 22. Rac1 {[%emt 0:00:44] [#]} (22. d4 {was worth a try.} Nxd4 (22... exd4 $2 23. Bxg6 d3 24. Rac1 $19) 23. Bxd4) 22... Na2 $2 {[%emt 0:00:05]} (22... e4 $1 $19 {[%cal Re4f3]} 23. Nxe4 Nxe4 24. Rxe4 Bd5 (24... Ne5 25. Nxe5 Bxe5 26. Ba4 $15)) 23. Rb1 $15 {[%emt 0:00:04]} Rb8 {[%emt 0:00:36] Inhibits Bb6.} (23... Nd4 $15 24. Nxd4 exd4 (24... Qxc5 $2 25. Nxe6 fxe6 26. Bb3 $18)) 24. Rxb8 {[%emt 0:00:22]} (24. d4 {keeps more tension.} exd4 25. Bxg6 Nc3 26. Rxb8 Nxb8 27. Bxd4 Nb5 28. Be5) 24... Rxb8 {[%emt 0:00:01]} 25. d4 {[%emt 0:00:03]} Nxd4 {[%emt 0:00:10]} (25... Rb2 $1 $11 26. Rb1 (26. d5 Nd4 $11) 26... Rxc2 27. Qxc2 Nxd4 28. Nxd4 exd4) 26. Bxd4 $16 {[%emt 0:00:01]} exd4 {[%emt 0:00:01]} 27. Bxg6 $1 {[%emt 0:00:02][%cal Oe1e6] Black must now prevent Rxe6!} Qc3 {[%emt 0:00:01]} (27... Bd5 $16 28. Be4 Bxe4 29. Rxe4 (29. Nxe4 Nc3 $16) 29... Nc3) 28. Qf4 $18 {[%emt 0:00:02]} Rf8 {[%emt 0:00:11]} 29. Bf5 {[%emt 0:00:01]} d3 {[%emt 0:00:01]} 30. Qg4 {[%emt 0:00:07]} (30. Bxe6 fxe6 31. Qe3 (31. Qd6 $2 Rxf3 32. Rxe6 d2 $19) 31... d2 32. Nxd2 Qxe3 33. Rxe3 Bd4) (30. Qd6 $18 Bc8 31. Bxd3) 30... Kh8 {[%emt 0:00:07]} 31. Rd1 {[%emt 0:00:06]} Nc1 {[%emt 0:00:01]} 32. Kh2 {[%emt 0:00:04]} (32. Bxe6 $16 fxe6 33. Nh5 (33. Qxe6 Qc2 $16)) 32... Rg8 $2 {[%emt 0:00:04][%mdl 8192]} (32... Bb3 $11 {and Black is okay.} 33. Rd2 Rd8) 33. Bxe6 {[%emt 0:00:01]} fxe6 {[%emt 0:00:00]} 34. Qxe6 {[%emt 0:00:02] Strongly threatening Nh4.} Qc7 $2 {[%emt 0:00:04]} (34... Qb3 35. Qxb3 (35. Rxc1 $2 Qxe6 36. Nf1 Rc8 $19) 35... Nxb3 36. Rxd3 Rb8) 35. Nh4 {[%emt 0:00:04]} Rd8 {[%emt 0:00:04]} 36. Nhf5 {[%emt 0:00:04][%cal Of5g7] Hoping for Nxg7!} ({Not} 36. Qxa6 d2 37. Nhf5 Na2 $18) 36... Ne2 {[%emt 0:00:03]} 37. Nxh6 {[%emt 0:00:05] Excellent horsemanship.} Rf8 {[%emt 0:00:01] Dodges Nf7+} 38. Rxd3 {[%emt 0:00:02] And now Rd7 would win.} (38. Qxa6 $2 {is the wrong capture.} Rxf2 $17) 38... Rxf2 $2 {[%emt 0:00:02]} (38... Nf4 $18 39. Qd6 (39. Qxa6 $2 {perishes.} Nxd3 40. Qxd3 Bxh6 $19) 39... Qc8) 39. Qg8# {[%emt 0:00:01] Never resign too early!   Weighted Error Value: White=0.34/Black=0.70.  Loses game:     	---       	Black=1      Missed win:     	---       	Black=1      Mistake:       	White=4     	Black=5      Inaccurate:     	White=7     	Black=4      OK:         	White=4     	Black=5      Best:        	White=5     	Black=2      Strong:       	White=1     	---} 1-0

[Event "Vugar Gashimov Memorial Blitz 2024"]
[Site "Shusha"]
[Date "2024.09.28"]
[Round "11.1"]
[White "Aravindh, Chithambaram VR."]
[Black "Mamedyarov, Shakhriyar"]
[Result "0-1"]
[ECO "C28"]
[WhiteElo "2698"]
[BlackElo "2733"]
[Annotator "TA"]
[PlyCount "80"]
[EventDate "2024.09.28"]
[EventType "tourn"]
[EventCountry "AZE"]
[SourceTitle "playchess.com"]
[Source "ChessBase"]
[SourceQuality "1"]
[TimeControl "180+2"]

{[%evp 30,80,-6,-11,-10,-44,-27,-37,-32,-32,0,0,0,-43,-48,-170,35,0,0,0,0,-33,-16,-24,-15,-56,-25,-30,-26,-71,-49,-70,0,0,0,0,226,191,208,-286,-245,-432,-439,-431,-407,-1079,-701,-1395,-1229,-29977,-29977,-29964,-6434]} 1. e4 {[%emt 0:00:02]} e5 {[%emt 0:00:01]} 2. Nc3 {[%emt 0:00:02]} Nc6 {[%emt 0:00:05]} 3. Bc4 {[%emt 0:00:02]} Nf6 {[%emt 0:00:05]} 4. d3 {[%emt 0:00:01]} Bc5 {[%emt 0:00:03]} 5. h3 {[%emt 0:00:02]} d6 {[%emt 0:00:04]} 6. Nge2 {[%emt 0:00:02] C28: Vienna Game: 2...Nf6 3 Bc4 Nc6.} Na5 {[%emt 0:00:04]} 7. Ng3 {[%emt 0:00:06]} Nxc4 {[%emt 0:00:04]} 8. dxc4 {[%emt 0:00:01]} Be6 {[%emt 0:00:01]} 9. b3 {[%emt 0:00:05]} h5 $146 {[%emt 0:00:17]} ({Predecessor:} 9... c6 10. O-O O-O 11. Bb2 a6 12. Na4 Qc7 13. Nxc5 dxc5 14. Qd2 Nd7 15. Rad1 f6 {1-0 Casper,T (2355)-Braun,G (2360) DDR-ch28 Final 1979 (13)}) 10. Qf3 {[%emt 0:00:06]} h4 {[%emt 0:00:23]} 11. Nf5 {[%emt 0:00:01]} Bxf5 {[%emt 0:00:03]} 12. exf5 {[%emt 0:00:07]} e4 {[%emt 0:00:14]} 13. Qe2 {[%emt 0:00:25]} Qe7 {[%emt 0:00:01]} 14. Bb2 {[%emt 0:00:12]} Qe5 {[%emt 0:00:14]} 15. O-O-O {[%emt 0:00:47]} Qxf5 {[%emt 0:00:55]} 16. f3 $1 {[%emt 0:00:03]} O-O-O {[%emt 0:00:18]} 17. fxe4 {[%emt 0:00:01]} Qg6 {[%emt 0:00:01]} 18. Rhf1 {[%emt 0:00:45]} Rde8 {[%emt 0:00:01]} 19. Qf3 {[%emt 0:00:04]} Rh5 {[%emt 0:00:10]} 20. Nd5 {[%emt 0:00:35]} Nxd5 {[%emt 0:00:07]} (20... Qxe4 $2 21. Bxf6 Rxd5 (21... Qxf3 $2 22. Rxf3 Rxd5 23. Rxd5 $18) 22. Rxd5 $18) (20... Nxe4 $2 21. Nf4 Rf5 22. Nxg6 $18) (20... Rxe4 $2 21. Bxf6 Rxd5 (21... gxf6 $2 22. Nxf6 Ree5 23. Nxh5 $18) 22. cxd5 $18) 21. exd5 {[%emt 0:00:08]} f6 {[%emt 0:00:04]} 22. Rde1 {[%emt 0:00:01]} (22. Rfe1 $15 Rg5 23. Rxe8+ Qxe8 24. Bd4) 22... Rhh8 $2 {[%emt 0:00:01]} (22... Rg5 $19 {Strongly threatening ...Rxe1+.} 23. Kd1 (23. Rxe8+ Qxe8 24. Bc3 Qg6 $19) 23... Rxe1+ (23... Rxg2 $2 24. Rxe8+ Kd7 25. Qxg2 $18) 24. Rxe1 Rxg2) 23. a3 {[%emt 0:00:01]} a5 {[%emt 0:00:01]} 24. Kb1 {[%emt 0:00:03]} Qg3 {[%emt 0:00:07]} 25. Qf5+ {[%emt 0:00:02]} Kb8 {[%emt 0:00:01]} 26. Re6 $1 {[%emt 0:00:05]} Qxg2 {[%emt 0:00:04]} 27. Rfe1 {[%emt 0:00:01]} Rc8 {[%emt 0:00:03]} 28. Re7 {[%emt 0:00:03]} Qg3 {[%emt 0:00:08]} 29. Qd7 {[%emt 0:00:01]} Rhd8 $1 {[%emt 0:00:04]} 30. Qb5 {[%emt 0:00:03]} Bb6 {[%emt 0:00:04]} (30... Qxh3 $2 31. Rxg7 Rg8 32. Rh7 $19) ({Better is} 30... Bf2 $1 $15 31. R1e2 f5 32. Rxg7 (32. Bxg7 $2 f4 $19) 32... Qf3) 31. b4 $11 {[%emt 0:00:01]} axb4 {[%emt 0:00:01]} (31... Qxh3 $2 32. bxa5 Bxa5 33. Qxa5 $18) 32. axb4 {[%emt 0:00:01]} Qf3 $2 {[%emt 0:00:02] [#]} (32... Qxh3 $11 {and Black stays safe.} 33. Rxg7 Qf5) 33. Qa4 $1 $18 {[%emt 0:00:05]} (33. Rxg7 Bf2 34. c5 dxc5 $15 (34... Bxe1 35. c6 Qd1+ 36. Bc1)) 33... Qxh3 {[%emt 0:00:02] [#]} 34. Qb5 $4 {[%emt 0:00:03][%mdl 8192]} ({Inferior is} 34. Rxg7 Qf3 35. Qb3 Qf2 $17) (34. Bc1 $1 $18 {[%cal Oe1e3] R1e3! is the strong threat.} Qc3 35. R1e3 Qxc4 (35... Bxe3 $2 36. Bxe3 Qe1+ 37. Kb2 $18) 36. Ra3) 34... Qf3 {[%emt 0:00:02]} 35. R7e4 $2 {[%emt 0:00:01]} (35. Rxg7 h3 36. c5 dxc5 (36... Qxd5 37. Bxf6 Rf8 38. Bc3 $17) 37. bxc5 Rxd5 38. Qf1 Qxf1 39. Rxf1 Rxc5 (39... Bxc5 $2 40. Rh7 $19) 40. Rh7) 35... h3 $19 {[%emt 0:00:03]} 36. c5 {[%emt 0:00:01]} h2 {[%emt 0:00:04]} 37. cxb6 {[%emt 0:00:02]} (37. Qf1 $142 Qxf1 38. Rxf1 dxc5 39. Rh1) 37... h1=Q {[%emt 0:00:02]} (37... h1=N 38. Re7 Qg3 39. Bd4 (39. Rxh1 Qf2 $18) 39... Qa3 40. Rxc7 (40. Rxh1 Qa6 $18) (40. bxc7+ Rxc7 41. Qb6 Ka8 42. R1e3 Qxb4+ 43. Qxb4 Kb8 44. Qb6 Rcd7 45. Qa7+ Kc8 46. Rc3+ Rc7 47. Rexc7#) (40. Rxh1 c6 $18) (40. bxc7+ Rxc7 41. Qb6 Ka8 42. R1e3 Qa6 43. Qxc7 Qf1+ 44. Ka2 Qa6+ 45. Ra3 Qxa3+ 46. Kxa3 Rh8 47. Qxb7#)) 38. bxc7+ {[%emt 0:00:04]} Rxc7 {[%emt 0:00:01]} 39. Re8 {[%emt 0:00:01]} Rxe8 {[%emt 0:00:02]} 40. Qxe8+ {[%emt 0:00:01]} Rc8 {[%emt 0:00:01]} 0-1

[Event "Vugar Gashimov Memorial Blitz 2024"]
[Site "Shusha"]
[Date "2024.09.28"]
[Round "11.2"]
[White "Mamedov, Rauf"]
[Black "Suleymanli, Aydin"]
[Result "0-1"]
[ECO "C56"]
[WhiteElo "2637"]
[BlackElo "2632"]
[Annotator "TA"]
[PlyCount "68"]
[EventDate "2024.09.28"]
[EventType "tourn"]
[EventCountry "AZE"]
[SourceTitle "playchess.com"]
[Source "ChessBase"]
[SourceQuality "1"]
[TimeControl "180+2"]

{[%evp 20,68,32,8,24,29,25,18,18,6,39,34,29,16,14,12,99,56,68,0,22,-128,-110,-145,-94,-92,-70,-100,-45,-85,-83,-72,-45,-65,-61,-62,-70,-79,-75,-74,-84,-83,-81,-88,-88,-133,-109,-216,-202,-535,-552]} 1. e4 {[%emt 0:00:01]} e5 {[%emt 0:00:00]} 2. Nf3 {[%emt 0:00:00]} Nc6 {[%emt 0:00:01]} 3. Bc4 {[%emt 0:00:01]} Nf6 {[%emt 0:00:02]} 4. d4 {[%emt 0:00:01]} exd4 {[%emt 0:00:04]} 5. e5 {[%emt 0:00:01]} d5 {[%emt 0:00:01]} 6. Bb5 {[%emt 0:00:00]} Ne4 {[%emt 0:00:01]} 7. Nxd4 {[%emt 0:00:02]} Bc5 {[%emt 0:00:01]} 8. Be3 {[%emt 0:00:13]} O-O {[%emt 0:00:09]} 9. Nxc6 {[%emt 0:00:01]} bxc6 {[%emt 0:00:02]} 10. Bxc5 {[%emt 0:00:02]} Nxc5 {[%emt 0:00:01]} 11. Bxc6 {[%emt 0:00:01]} Rb8 {[%emt 0:00:01][%cal Ba8b8,Bb8b2,Bb2c2][%mdl 32]} 12. Qxd5 {[%emt 0:00:14]} Qe7 {[%emt 0:00:04][%cal Of8d8] [#] And now ...Rd8! would win.} 13. O-O {[%emt 0:00:07]} Rxb2 {[%emt 0:00:14] The position is equal.} 14. Nc3 {[%emt 0:00:04]} Rxc2 {[%emt 0:00:07]} (14... Rd8 $5 15. Qf3 Ne6 $11) 15. Qd4 {[%emt 0:00:03]} Ne6 {[%emt 0:00:11]} 16. Qd3 {[%emt 0:00:06]} Rb2 {[%emt 0:00:01]} 17. Nd5 {[%emt 0:00:03]} Qh4 {[%emt 0:00:11]} (17... Qc5 $11 {keeps the balance.}) 18. Qa3 {[%emt 0:00:11][%csl LRa7,LRb2]} Qd4 {[%emt 0:00:52][%cal Ob2f2]} 19. Ne7+ {[%emt 0:01:08]} (19. Rad1 $14 Qxe5 20. Ne3 (20. Qxa7 g6 $14)) 19... Kh8 $11 {[%emt 0:00:01][%cal Ob2f2]} 20. Bd5 {[%emt 0:00:04] [#]} (20. Rad1 $11 Qxe5 21. Bd5 (21. Qxa7 Rb6 $11)) 20... Rxf2 $3 $17 {[%emt 0:00:21][%mdl 512]} 21. Kh1 {[%emt 0:00:02]} (21. Rxf2 Qxa1+) 21... Rd8 {[%emt 0:00:48]} ({Better is} 21... c5 {...Nf4 is the strong threat.} 22. Bf3 Bd7 (22... Qxe5 23. Nxc8 Rxc8 24. Qxa7 $19)) 22. Bf3 {[%emt 0:00:56]} Rxf1+ {[%emt 0:00:24]} 23. Rxf1 {[%emt 0:00:01]} Qxe5 {[%emt 0:00:07]} ({Black should play} 23... Bd7 $17 24. Rd1 Qh4 (24... Qxe5 $2 {too greedy.} 25. Nc6 $18)) 24. Nxc8 {[%emt 0:00:17]} Rxc8 {[%emt 0:00:02]} 25. Qxa7 {[%emt 0:00:01]} Qb5 $40 {[%emt 0:00:01][%mdl 128] White needs to defend precisely.} 26. Rc1 {[%emt 0:00:09]} g6 {[%emt 0:00:01]} 27. h3 {[%emt 0:00:01]} Qb2 {[%emt 0:00:01]} 28. Re1 {[%emt 0:00:02]} Rd8 {[%emt 0:00:01]} 29. a4 {[%emt 0:00:02]} Qb4 {[%emt 0:00:01]} 30. Ra1 {[%emt 0:00:02] White is weak on the dark squares} Qc3 {[%emt 0:00:04]} 31. Qg1 {[%emt 0:00:02]} Nd4 {[%emt 0:00:03] Black has more active pieces.} 32. Rd1 {[%emt 0:00:05][%cal Oa4a5]} Rd6 {[%emt 0:00:01]} (32... Nxf3 $2 {is the wrong capture.} 33. Rxd8+ Kg7 34. gxf3 $18) 33. Bg4 {[%emt 0:00:02]} (33. Rc1 $17 Qd2 34. Rd1) 33... h5 $19 {[%emt 0:00:01]} 34. Bf3 {[%emt 0:00:02]} (34. Bc8 {is a better chance.} Ne2 35. Qe1) 34... Nxf3 {[%emt 0:00:02] Weighted Error Value: White=0.40/Black=0.17 (very precise) .  Mistake:       	White=4     	Black=3      Inaccurate:     	White=5     	Black=2      OK:         	White=10    	Black=9      Best:        	White=1     	Black=2      Brilliant:      	---       	Black=1} 0-1

[Event "Vugar Gashimov Memorial Blitz 2024"]
[Site "Shusha"]
[Date "2024.09.28"]
[Round "11.3"]
[White "Rapport, Richard"]
[Black "Nepomniachtchi, Ian"]
[Result "1/2-1/2"]
[ECO "B50"]
[WhiteElo "2715"]
[BlackElo "2755"]
[Annotator "TA"]
[PlyCount "83"]
[EventDate "2024.09.28"]
[EventType "tourn"]
[EventCountry "AZE"]
[SourceTitle "playchess.com"]
[Source "ChessBase"]
[SourceQuality "1"]
[TimeControl "180+2"]

{[%evp 19,83,0,0,0,9,-4,17,-23,0,6,14,15,11,0,35,22,23,18,33,-9,5,-17,-17,0,41,-56,-50,-56,-28,-58,26,22,33,19,18,0,145,152,146,140,147,145,156,173,125,29,13,2,8,0,0,0,141,131,210,0,177,160,386,0,0,0,423,0,0,0]} 1. e4 {[%emt 0:00:02]} c5 {[%emt 0:00:01]} 2. Nf3 {[%emt 0:00:02]} d6 {[%emt 0:00:01]} 3. c3 {[%emt 0:00:01]} Nf6 {[%emt 0:00:01]} 4. Be2 {[%emt 0:00:00]} e5 {[%emt 0:00:02]} 5. Bb5+ {[%emt 0:00:12]} Bd7 {[%emt 0:00:01]} 6. Bxd7+ {[%emt 0:00:02] B50: Sicilian: 2...d6, Miscellaneous.} Qxd7 {[%emt 0:00:00]} 7. d3 {[%emt 0:00:02]} Nc6 {[%emt 0:00:07]} 8. Bg5 $146 {[%emt 0:00:03]} ({Predecessor:} 8. O-O Be7 9. Re1 O-O 10. Nbd2 Ne8 11. d4 cxd4 12. cxd4 Nxd4 13. Nxd4 exd4 14. Nf3 {½-½ Yaakkimainen,V (2169)-Rumak,M (2123) Karelia-ch 65th 2012 (2)}) 8... Be7 {[%emt 0:00:02]} 9. Nbd2 {[%emt 0:00:02]} O-O {[%emt 0:00:02]} 10. Bxf6 {[%emt 0:00:02]} Bxf6 {[%emt 0:00:01]} 11. Qb3 {[%emt 0:00:04]} Ne7 {[%emt 0:00:29]} 12. Nc4 {[%emt 0:00:07]} d5 {[%emt 0:00:12]} 13. Ne3 {[%emt 0:00:35]} c4 {[%emt 0:00:07]} 14. dxc4 {[%emt 0:00:01]} dxe4 {[%emt 0:00:01]} 15. Nd2 {[%emt 0:00:07]} Bg5 $1 {[%emt 0:00:00]} 16. O-O-O {[%emt 0:00:16]} Qc6 {[%emt 0:00:12]} 17. Qb5 {[%emt 0:00:06]} Qxb5 {[%emt 0:00:25]} 18. cxb5 {[%emt 0:00:01]} f5 {[%emt 0:00:00]} 19. Kc2 {[%emt 0:00:11]} Rac8 {[%emt 0:00:15]} 20. Nec4 {[%emt 0:00:11]} Bxd2 {[%emt 0:00:07]} 21. Nxd2 {[%emt 0:00:02]} Kf7 {[%emt 0:00:09]} 22. Kb3 {[%emt 0:00:07]} (22. Rhe1 $14) 22... Ke6 $15 {[%emt 0:00:01]} 23. Nc4 {[%emt 0:00:12]} Rfd8 {[%emt 0:00:01]} 24. a4 {[%emt 0:00:01]} Nd5 {[%emt 0:00:13]} (24... Rxd1 $15 25. Rxd1 Nd5) 25. Na5 $1 $11 {[%emt 0:00:04]} b6 $1 {[%emt 0:00:28]} 26. Nc6 {[%emt 0:00:04]} Rd7 {[%emt 0:00:00]} 27. g3 {[%emt 0:00:06]} a5 {[%emt 0:00:07]} (27... Nf6 $11) 28. c4 $16 {[%emt 0:00:04]} Nf6 {[%emt 0:00:01]} 29. c5 $1 {[%emt 0:00:01]} bxc5 {[%emt 0:00:29]} 30. Rxd7 {[%emt 0:00:03]} (30. Nxa5 Rd4 $16) 30... Nxd7 {[%emt 0:00:01]} 31. Nxa5 {[%emt 0:00:02]} c4+ {[%emt 0:00:10]} 32. Nxc4 {[%emt 0:00:05]} (32. Ka3 $1 $16 {And now Rc1 would win.} f4 33. gxf4 exf4 34. Nc6) 32... Nc5+ $11 {[%emt 0:00:01]} 33. Ka3 {[%emt 0:00:05]} Nxa4 $1 {[%emt 0:00:04]} 34. b6 {[%emt 0:00:12]} (34. Kxa4 {simplifies} Rxc4+ 35. Ka5 Kd7 36. Rd1+) 34... Nc5 {[%emt 0:00:02]} (34... Rxc4 35. b7 Nc5 36. b3 (36. b8=R $2 Ra4#) 36... Nxb7 37. bxc4) 35. Rd1 {[%emt 0:00:03]} Nb7 {[%emt 0:00:00]} (35... Nd3 $11) 36. Kb4 $16 {[%emt 0:00:06]} f4 {[%emt 0:00:01] [#]} (36... Rd8 $16 {is a better defense.} 37. Rxd8 Nxd8) 37. Kb5 $2 {[%emt 0:00:01]} (37. gxf4 $1 $18 Rf8 38. Na5 (38. fxe5 Rxf2 39. b3 Rf8 $18) (38. Nxe5 Rxf4 39. Nc4 Rxf2 $18) 38... Nxa5 39. Kxa5) 37... g5 $2 {[%emt 0:00:03] [#]} (37... Rc5+ $11 38. Ka6 Rxc4 39. Kxb7 Rb4) 38. b4 $1 $18 {[%emt 0:00:03]} g4 $2 {[%emt 0:00:05]} (38... h6 $16 {might work better.} 39. g4 Rd8) 39. Re1 {[%emt 0:00:24]} Kd5 $1 {[%emt 0:00:04]} 40. Rd1+ {[%emt 0:00:03]} Ke6 {[%emt 0:00:00]} 41. Re1 $2 {[%emt 0:00:05]} ({Only move:} 41. gxf4 $18 exf4 42. Rd4) 41... Kd5 $1 $11 {[%emt 0:00:01]} 42. Rd1+ {[%emt 0:00:10]} 1/2-1/2

[Event "Vugar Gashimov Memorial Blitz 2024"]
[Site "Shusha"]
[Date "2024.09.28"]
[Round "11.4"]
[White "Abdusattorov, Nodirbek"]
[Black "Artemiev, Vladislav"]
[Result "1/2-1/2"]
[ECO "C26"]
[WhiteElo "2766"]
[BlackElo "2701"]
[Annotator "TA"]
[PlyCount "95"]
[EventDate "2024.09.28"]
[EventType "tourn"]
[EventCountry "AZE"]
[SourceTitle "playchess.com"]
[Source "ChessBase"]
[SourceQuality "1"]
[TimeControl "180+2"]

{[%evp 10,94,0,-4,-8,-15,-15,-27,16,8,38,24,36,23,30,37,38,34,30,33,37,35,29,25,32,33,29,28,38,12,12,15,38,0,36,30,34,35,30,31,35,44,25,36,25,25,19,23,32,20,18,28,164,162,151,18,137,129,122,0,152,31,35,8,8,8,16,15,28,50,38,0,0,0,0,0,0,0,0,0,0,0,0,0,0,0,0]} 1. e4 {[%emt 0:00:01]} e5 {[%emt 0:00:01]} 2. Nf3 {[%emt 0:00:02]} Nc6 {[%emt 0:00:01]} 3. g3 {[%emt 0:00:01]} Nf6 {[%emt 0:00:03]} 4. d3 {[%emt 0:00:00]} Bc5 {[%emt 0:00:01]} 5. Bg2 {[%emt 0:00:01]} d6 {[%emt 0:00:02]} 6. Nc3 {[%emt 0:00:02]} a5 {[%emt 0:00:18]} 7. O-O {[%emt 0:00:02]} O-O {[%emt 0:00:02]} 8. h3 {[%emt 0:00:03]} Ne7 {[%emt 0:00:06] Schwarz hat minimalen Vorteil.} 9. Bg5 {[%emt 0:00:13]} Ne8 {[%emt 0:00:28]} 10. d4 {[%emt 0:00:03]} exd4 {[%emt 0:00:02]} 11. Nxd4 {[%emt 0:00:06]} h6 {[%emt 0:00:04]} 12. Be3 {[%emt 0:00:06]} Nf6 {[%emt 0:00:02]} 13. Qd2 {[%emt 0:00:08]} Re8 {[%emt 0:00:10][%cal Bf8e8,Be8e5,Be5h5][%mdl 32]} 14. Rad1 {[%emt 0:00:03]} Ng6 {[%emt 0:00:50]} 15. Ndb5 {[%emt 0:00:19]} Bxe3 {[%emt 0:00:07]} 16. Qxe3 {[%emt 0:00:01]} Bd7 {[%emt 0:00:04]} 17. a4 {[%emt 0:00:02]} Qc8 {[%emt 0:00:07]} 18. Kh2 {[%emt 0:00:13]} Re5 {[%emt 0:00:01]} 19. f3 {[%emt 0:00:18]} (19. f4 Bxh3 (19... Rh5 $2 20. Qd2 $19) 20. Kg1 (20. fxe5 $2 Ng4+ 21. Kxh3 Nxe3+ 22. Kh2 Nxf1+ 23. Bxf1 Nxe5 $19) (20. Bxh3 $2 Rh5 $19) 20... Bxg2 21. Kxg2 Rh5 $17) 19... Rh5 {[%emt 0:00:43][%cal Og6e5]} 20. h4 {[%emt 0:00:02]} Rc5 {[%emt 0:00:12]} 21. Kg1 {[%emt 0:00:20]} Bxb5 {[%emt 0:00:02]} 22. Nxb5 {[%emt 0:00:01]} Rxc2 {[%emt 0:00:03]} 23. Rc1 {[%emt 0:00:01]} Rxc1 {[%emt 0:00:05]} ({Ein No Go ist} 23... Rxb2 $6 24. Nxc7 Rb8 25. Na6 $18) 24. Rxc1 {[%emt 0:00:01]} Ne8 {[%emt 0:00:04] [#]} 25. Nxc7 $1 {[%emt 0:00:15]} Nxc7 {[%emt 0:00:01]} 26. Qb6 {[%emt 0:00:01][%csl LRc7,LRd6]} Ra6 {[%emt 0:00:04][%cal Ba8a6,Ba6b6,Bb6b2][%mdl 32]} 27. Qxc7 {[%emt 0:00:05]} Qxc7 {[%emt 0:00:01]} 28. Rxc7 $11 {[%emt 0:00:01][%mdl 4096] Endspiel. KRB-KRN} Rb6 {[%emt 0:00:01]} 29. f4 {[%emt 0:00:03][%cal Oe4e5,Bf3f4,Bf4f5][%mdl 32]} Rxb2 {[%emt 0:00:02]} 30. Bf1 {[%emt 0:00:01]} Nf8 {[%emt 0:00:06]} (30... Rb4 $11 {und Schwarz steht sicher.}) 31. f5 {[%emt 0:00:20][%mdl 1024] Weiss hat starke Kompensation.} Nh7 {[%emt 0:00:01]} 32. Rc8+ {[%emt 0:00:08]} Nf8 {[%emt 0:00:01] [#]} 33. Bc4 $1 {[%emt 0:00:01]} Rb4 {[%emt 0:00:09]} 34. Rc7 {[%emt 0:00:08] Weiß steht aktiver.} (34. Bd5 $16) 34... Nh7 $2 {[%emt 0:00:02]} ({Besser ist} 34... Nd7 $1 $11) 35. Bxf7+ {[%emt 0:00:03]} (35. g4 $16) 35... Kf8 $14 {[%emt 0:00:00]} 36. Bd5 {[%emt 0:00:13] Schwarz sollte Rf7+ verhindern.} Nf6 {[%emt 0:00:01]} 37. Rf7+ {[%emt 0:00:02]} Ke8 {[%emt 0:00:01] ...Nxd5 ist eine echte Drohung.} 38. Rxg7 {[%emt 0:00:04]} (38. Rxb7 $2 {geht unter.} Nxd5 (38... Nxe4 $2 {zu gefräßig.} 39. Rxb4 Nxg3 40. Rb5 $18) 39. Rxg7 Rxe4 $19) 38... Rxa4 {[%emt 0:00:01]} 39. Rxb7 {[%emt 0:00:08] Schwarz muss nun Bc6+ beachten.} Rd4 {[%emt 0:00:04]} 40. Rb5 {[%emt 0:00:15]} a4 {[%emt 0:00:01] Die Stellung ist ausgeglichen.} 41. Ra5 {[%emt 0:00:00]} Rd3 {[%emt 0:00:04]} 42. Rxa4 {[%emt 0:00:20] Und jetzt Ra8+ wäre schön.} Nxd5 {[%emt 0:00:03]} 43. exd5 {[%emt 0:00:04]} Rxg3+ $11 {[%emt 0:00:01] KR-KR} 44. Kf2 {[%emt 0:00:02]} Rd3 {[%emt 0:00:00]} 45. Re4+ {[%emt 0:00:05]} Kf7 {[%emt 0:00:01]} 46. Re6 {[%emt 0:00:01]} Rxd5 {[%emt 0:00:01]} 47. Rxh6 {[%emt 0:00:01]} Rxf5+ {[%emt 0:00:01]} 48. Ke3 {[%emt 0:00:08] Gewichteter Fehlerwert: Weiß=0.13 (sehr präzise) /Schwarz=0.16 (sehr präzise) .  Fehler:       	Weiß=2     	Schwarz=2     Ungenau:       	Weiß=4     	Schwarz=4     OK:         	Weiß=12    	Schwarz=18    Bester:       	Weiß=1     	Schwarz=5     Stark:        	Weiß=1     	---        Brilliant:      	Weiß=1     	---} 1/2-1/2